fUSD/lending_fUSD_20240424
["ID","MTS","AMOUNT","RATE_DAILY","PERIOD"]
[323455700,1713997832645,-1363.9896762,0.00012055,2]
[323455702,1713997832658,-517.9614323,0.00012055,2]
[323455704,1713997832669,-803.1102161,0.00012055,2]
[323455706,1713997832685,-404.406,0.00012055,2]
[323455709,1713997832696,-484.32,0.00012055,2]
[323455712,1713997832714,-4318.56012524,0.00012055,2]
[323455714,1713997832725,-1175.43372558,0.00012055,2]
[323455727,1713997838158,-2022.6949102,0.00012055,2]
[323455728,1713997838170,-729.82228752,0.00012055,2]
[323455729,1713997838181,-3105.64162686,0.00012055,2]
[323455730,1713997838190,-285.92,0.00012057,2]
[323455731,1713997838199,-285.92,0.0001206,2]
[323455732,1713997838209,-285.92,0.00012063,2]
[323455733,1713997838217,-285.92,0.00012066,2]
[323455734,1713997838225,-285.92,0.0001207,2]
[323455735,1713997838233,-157.96,0.00012071,2]
[323455736,1713997838242,-285.92,0.00012073,2]
[323455737,1713997838251,-1000.0,0.0001212,2]
[323455738,1713997838260,-286.42840859,0.000122,4]
[323455739,1713997838272,-913.57159141,0.000122,4]
[323455740,1713997838281,-167.33,0.00012253,2]
[323455741,1713997838290,-1855.19795283,0.00012278,2]
[323455742,1713997838301,-379.88735711,0.00012278,2]
[323455743,1713997838312,-1571.2760012,0.00012278,2]
[323455744,1713997838323,-866.13511901,0.00012278,2]
[323455745,1713997838334,-1325.81220542,0.00012278,2]
[323455746,1713997838346,-4001.69136443,0.00012278,2]
[323455747,1713997838355,-56.68028013,0.00012294,2]
[323455750,1713997838462,-2353.44971987,0.00012294,2]
[323455752,1713997838472,-2500.0,0.000123,4]
[323455753,1713997838481,-1293.62492362,0.00012348,2]
[323455754,1713997838489,-2500.0,0.00012392,2]
[323455755,1713997838498,-1213.25674976,0.00012392,2]
[323455757,1713997838564,-372.33325024,0.00012392,2]
[323455758,1713997838573,-3094.32703647,0.000124,4]
[323455759,1713997838585,-705.67296353,0.000124,4]
[323455760,1713997838594,-4630.23,0.00012482,2]
[323455761,1713997838603,-2500.0,0.00012489,2]
[323455762,1713997838612,-5100.0,0.000125,4]
[323455763,1713997838621,-5000.0,0.00012509,2]
[323455764,1713997838630,-6400.0,0.000126,4]
[323455765,1713997838638,-17887.57469447,0.00012698,2]
[323455767,1713997840277,-7446.39110553,0.00012698,2]
[323455768,1713997840287,-1200.0,0.000127,4]
[323455769,1713997840296,-1538.23,0.00012761,2]
[323455770,1713997840306,-2500.0,0.00012798,2]
[323455771,1713997840316,-500.0,0.00012799,2]
[323455772,1713997840326,-500.0,0.00012799,2]
[323455773,1713997840337,-500.0,0.00012799,2]
[323455774,1713997840347,-500.0,0.00012799,2]
[323455775,1713997840356,-500.0,0.00012799,2]
[323455776,1713997840366,-500.0,0.00012799,2]
[323455777,1713997840376,-500.0,0.00012799,2]
[323455778,1713997840386,-500.0,0.00012799,2]
[323455779,1713997840398,-500.0,0.00012799,2]
[323455780,1713997840408,-500.0,0.00012799,2]
[323455781,1713997840417,-500.0,0.00012799,2]
[323455782,1713997840426,-500.0,0.00012799,2]
[323455783,1713997840435,-614.64214397,0.00012799,2]
[323455784,1713997840446,-62631.0,0.000128,2]
[323455785,1713997840456,-1200.0,0.000128,4]
[323455786,1713997840465,-2500.0,0.00012813,2]
[323455787,1713997840475,-383.37302981,0.00012869,2]
[323455788,1713997840484,-10000.0,0.000129,2]
[323455789,1713997840494,-365.97088217,0.000129,2]
[323455790,1713997840503,-1000.0,0.000129,2]
[323455791,1713997840513,-200.01599054,0.000129,2]
[323455792,1713997840522,-173.44820364,0.000129,2]
[323455793,1713997840532,-1796.96451225,0.000129,2]
[323455794,1713997840543,-170.95368944,0.000129,2]
[323455795,1713997840553,-1110.54542396,0.000129,2]
[323455796,1713997840562,-1441.22864382,0.000129,2]
[323455797,1713997840572,-435.90618638,0.000129,2]
[323455798,1713997840581,-252.72825547,0.000129,2]
[323455799,1713997840591,-197.85840028,0.000129,2]
[323455800,1713997840601,-1200.0,0.000129,4]
[323455801,1713997840610,-5000.0,0.00012905,2]
[323455802,1713997840621,-500.0,0.00012906,2]
[323455803,1713997840630,-5000.0,0.00012907,2]
[323455804,1713997840639,-3182.55123847,0.00012998,2]
[323455805,1713997840650,-245.39532679,0.00012998,2]
[323455806,1713997840659,-558.04,0.00012998,2]
[323455807,1713997840668,-552.8,0.00012998,2]
[323455808,1713997840677,-261.06,0.00012998,2]
[323455809,1713997840687,-500.0,0.00012998,2]
[323455810,1713997840696,-500.0,0.00012998,2]
[323455811,1713997840705,-500.0,0.00012998,2]
[323455812,1713997840715,-500.0,0.00012998,2]
[323455813,1713997840725,-500.0,0.00012998,2]
[323455814,1713997840734,-235.58,0.00012998,2]
[323455815,1713997840745,-500.0,0.00012998,2]
[323455816,1713997840755,-500.0,0.00012998,2]
[323455817,1713997840764,-325.73,0.00012998,2]
[323455818,1713997840774,-500.0,0.00012998,2]
[323455819,1713997840783,-500.0,0.00012998,2]
[323455820,1713997840792,-500.0,0.00012998,2]
[323455821,1713997840801,-500.0,0.00012998,2]
[323455822,1713997840812,-500.0,0.00012998,2]
[323455823,1713997840822,-500.0,0.00012998,2]
[323455824,1713997840831,-544.34,0.00012998,2]
[323455825,1713997840840,-500.0,0.00012998,2]
[323455826,1713997840850,-2776.45,0.00012998,2]
[323455827,1713997840859,-500.0,0.00012998,2]
[323455828,1713997840868,-977.79,0.00012998,2]
[323455829,1713997840877,-589.27,0.00012998,2]
[323455830,1713997840888,-500.0,0.00012998,2]
[323455831,1713997840899,-500.0,0.00012998,2]
[323455832,1713997840908,-500.0,0.00012998,2]
[323455833,1713997840918,-500.0,0.00012998,2]
[323455834,1713997840927,-500.0,0.00012998,2]
[323455835,1713997840937,-500.0,0.00012998,2]
[323455836,1713997840945,-500.0,0.00012998,2]
[323455837,1713997840954,-374.98,0.00012998,2]
[323455838,1713997840963,-320.55,0.00012998,2]
[323455839,1713997840972,-500.0,0.00012998,2]
[323455840,1713997840981,-500.0,0.00012998,2]
[323455841,1713997840990,-262.96,0.00012998,2]
[323455842,1713997840999,-242.71,0.00012998,2]
[323455843,1713997841008,-280.92,0.00012998,2]
[323455844,1713997841019,-500.0,0.00012998,2]
[323455845,1713997841029,-500.0,0.00012998,2]
[323455846,1713997841038,-272.57,0.00012998,2]
[323455847,1713997841047,-500.0,0.00012998,2]
[323455848,1713997841056,-500.0,0.00012998,2]
[323455849,1713997841066,-500.0,0.00012998,2]
[323455850,1713997841075,-500.0,0.00012998,2]
[323455851,1713997841084,-1174.37171661,0.00012999,2]
[323455852,1713997841093,-500.0,0.00012999,2]
[323455853,1713997841102,-500.0,0.00012999,2]
[323455854,1713997841113,-255.99459385,0.00012999,2]
[323455855,1713997841122,-500.0,0.00012999,2]
[323455856,1713997841132,-572.18,0.00012999,2]
[323455857,1713997841141,-500.0,0.00012999,2]
[323455858,1713997841150,-500.0,0.00012999,2]
[323455859,1713997841159,-500.0,0.00012999,2]
[323455860,1713997841168,-500.0,0.00012999,2]
[323455861,1713997841177,-361.00424718,0.00012999,2]
[323455862,1713997841186,-500.0,0.00012999,2]
[323455863,1713997841196,-500.0,0.00012999,2]
[323455864,1713997841205,-500.0,0.00012999,2]
[323455865,1713997841215,-500.0,0.00012999,2]
[323455866,1713997841227,-500.0,0.00012999,2]
[323455867,1713997841237,-500.0,0.00012999,2]
[323455868,1713997841247,-500.0,0.00012999,2]
[323455869,1713997841256,-500.0,0.00012999,2]
[323455870,1713997841265,-500.0,0.00012999,2]
[323455871,1713997841274,-500.0,0.00012999,2]
[323455872,1713997841284,-500.0,0.00012999,2]
[323455873,1713997841294,-311.43,0.00012999,2]
[323455874,1713997841303,-500.0,0.00012999,2]
[323455875,1713997841315,-500.0,0.00012999,2]
[323455876,1713997841325,-500.0,0.00012999,2]
[323455877,1713997841335,-500.0,0.00012999,2]
[323455878,1713997841345,-500.0,0.00012999,2]
[323455879,1713997841354,-500.0,0.00012999,2]
[323455880,1713997841363,-363.31,0.00012999,2]
[323455881,1713997841372,-559.35,0.00012999,2]
[323455882,1713997841381,-500.0,0.00012999,2]
[323455883,1713997841391,-500.0,0.00012999,2]
[323455884,1713997841401,-500.0,0.00012999,2]
[323455885,1713997841411,-500.0,0.00012999,2]
[323455886,1713997841421,-500.0,0.00012999,2]
[323455887,1713997841430,-500.0,0.00012999,2]
[323455888,1713997841439,-500.0,0.00012999,2]
[323455889,1713997841449,-500.0,0.00012999,2]
[323455890,1713997841458,-265.15410615,0.00012999,2]
[323455891,1713997841467,-500.0,0.00012999,2]
[323455892,1713997841477,-500.0,0.00012999,2]
[323455893,1713997841488,-500.0,0.00012999,2]
[323455894,1713997841497,-453.0094624,0.00012999,2]
[323455895,1713997841507,-500.0,0.00012999,2]
[323455896,1713997841517,-576.26,0.00012999,2]
[323455897,1713997841526,-500.0,0.00012999,2]
[323455898,1713997841535,-500.0,0.00012999,2]
[323455899,1713997841546,-500.0,0.00012999,2]
[323455900,1713997841555,-599.08,0.00012999,2]
[323455901,1713997841564,-500.0,0.00012999,2]
[323455902,1713997841574,-500.0,0.00012999,2]
[323455903,1713997841584,-1241.94,0.00012999,2]
[323455904,1713997841593,-500.0,0.00012999,2]
[323455905,1713997841603,-500.0,0.00012999,2]
[323455906,1713997841614,-500.0,0.00012999,2]
[323455907,1713997841624,-500.0,0.00012999,2]
[323455908,1713997841633,-500.0,0.00012999,2]
[323455909,1713997841643,-500.0,0.00012999,2]
[323455910,1713997841653,-500.0,0.00012999,2]
[323455911,1713997841664,-5000.0,0.00012999,2]
[323455912,1713997841673,-500.0,0.00012999,2]
[323455913,1713997841682,-500.0,0.00012999,2]
[323455914,1713997841692,-196980.88284129,0.00013,2]
[323455915,1713997841710,-188972.51795361,0.00013,2]
[323455916,1713997841721,-3531.82491885,0.00013,2]
[323455917,1713997841732,-4896.92,0.00013,2]
[323455918,1713997841743,-45955.9814627,0.00013,2]
[323455919,1713997841754,-922.8938064,0.00013,2]
[323455920,1713997841817,-815.97229927,0.00013,2]
[323455921,1713997841996,-476.56979241,0.00013,2]
[323455922,1713997842008,-696.2,0.00013,2]
[323455923,1713997842053,-7058.3,0.00013,2]
[323455924,1713997842065,-252.43701998,0.00013,2]
[323455925,1713997842077,-662.47809905,0.00013,2]
[323455926,1713997842109,-1103.89179112,0.00013,2]
[323455982,1713997843413,-1883.65102,0.00013,2]
[323455985,1713997843425,-880.029151,0.00013,2]
[323455987,1713997843441,-281.82831789,0.00013,2]
[323455990,1713997843453,-1838.75385252,0.00013,2]
[323455992,1713997843465,-298.774,0.00013,2]
[323455994,1713997843477,-1962.2339759,0.00013,2]
[323455996,1713997843488,-446.1795151,0.00013,2]
[323456001,1713997843524,-276.87103096,0.000129,2]
[323456003,1713997843532,-1.1842075,0.00013,2]
[323456004,1713997843544,-646.38980015,0.00013,2]
[323456005,1713997843911,-34258.0187931,0.00013,2]
[323456006,1713997843923,-1104.6360013,0.00013,2]
[323456011,1713997846282,-500.0,0.00012998,2]
[323456012,1713997846293,-500.0,0.00012999,2]
[323456013,1713997846305,-500.0,0.00012999,2]
[323456014,1713997846316,-13022.91221009,0.00013,2]
[323456015,1713997846330,-176445.19409591,0.00013,2]
[323456016,1713997846354,-6231.59735195,0.00013,2]
[323456017,1713997846375,-626.08111507,0.00013,2]
[323456018,1713997846388,-18560.266541,0.00013,2]
[323456019,1713997846401,-28264.79068205,0.00013,2]
[323456020,1713997846416,-38828.63791428,0.00013,2]
[323456021,1713997846429,-7253.59292008,0.00013,2]
[323456022,1713997846442,-5203.4324,0.00013,2]
[323456023,1713997846467,-1309.99765462,0.00013,2]
[323456024,1713997846480,-321.395,0.00013,2]
[323456051,1713999032434,-359.46553194,9.797e-05,2]
[323456052,1713999032443,-227.7,9.798e-05,2]
[323456053,1713999032452,-250.0,0.00011566,2]
[323456054,1713999032461,-152.87554014,0.00011574,2]
[323456055,1713999032474,-312.06068321,0.00011574,2]
[323456056,1713999032485,-460.55939495,0.00011574,2]
[323456057,1713999032496,-59.9343817,0.00011574,2]
[323456058,1713999032505,-155.78336681,0.00011599,2]
[323456059,1713999032516,-157.96,0.00011613,2]
[323456060,1713999032526,-679.12457306,0.00011697,2]
[323456061,1713999032596,-338.70707334,0.00011697,2]
[323456062,1713999032608,-428.45353738,0.00011697,2]
[323456063,1713999032650,-21.58502379,0.00011697,2]
[323456065,1713999032659,-267.72704526,0.00011699,2]
[323456066,1713999032670,-5526.59915598,0.00011702,2]
[323456079,1713999038479,-9223.03690669,0.00011702,2]
[323456081,1713999039138,-9150.36393733,0.00011702,2]
[323456082,1713999039147,-163.15,0.00011765,2]
[323456083,1713999039157,-150.99,0.00011765,2]
[323456084,1713999039168,-155.78336681,0.00011859,2]
[323456085,1713999039177,-162.89,0.00011997,2]
[323456086,1713999039187,-409.12011988,0.00012061,2]
[323456087,1713999039196,-227.7,0.00012062,2]
[323456088,1713999039206,-200.0,0.000121,4]
[323456089,1713999039216,-155.78336681,0.00012119,2]
[323456090,1713999039227,-500.0,0.000122,4]
[323456091,1713999039237,-16802.0,0.000123,2]
[323456092,1713999039247,-700.0,0.000123,4]
[323456093,1713999039258,-505.0,0.00012301,2]
[323456094,1713999039269,-155.78336681,0.00012378,2]
[323456095,1713999039279,-1000.0,0.000124,4]
[323456096,1713999039290,-1300.0,0.000125,4]
[323456097,1713999039300,-1000.0,0.00012569,2]
[323456098,1713999039310,-200.0,0.000126,4]
[323456099,1713999039321,-155.78336681,0.00012638,2]
[323456100,1713999039331,-7715.24880855,0.0001264,2]
[323456101,1713999039341,-2177.96914085,0.00012698,2]
[323456102,1713999039355,-26133.3351,0.00012699,2]
[323456103,1713999039366,-17141.4014,0.000127,2]
[323456104,1713999039376,-256.1496,0.000127,2]
[323456105,1713999039385,-200.0,0.000127,4]
[323456106,1713999039396,-189.93127907,0.00012793,2]
[323456107,1713999039405,-183.85770178,0.00012796,2]
[323456108,1713999039417,-599.0425219,0.00012796,2]
[323456109,1713999039428,-9458.04209141,0.00012796,2]
[323456110,1713999039440,-1036.5090624,0.00012796,2]
[323456111,1713999039449,-2733.911995,0.00012796,2]
[323456112,1713999039460,-209.9931,0.00012799,2]
[323456113,1713999039470,-765.4445,0.000128,2]
[323456114,1713999039480,-36742.8147,0.000128,2]
[323456115,1713999039491,-7500.0,0.000128,2]
[323456116,1713999039501,-200.0,0.000128,4]
[323456117,1713999039511,-1036.50906227,0.00012803,2]
[323456118,1713999039523,-1036.50906227,0.00012811,2]
[323456119,1713999039533,-1036.50906227,0.00012818,2]
[323456120,1713999039545,-1036.50906227,0.00012826,2]
[323456121,1713999039555,-1036.50906227,0.00012833,2]
[323456122,1713999039566,-1036.50906227,0.00012841,2]
[323456123,1713999039576,-183.85770178,0.00012848,2]
[323456124,1713999039585,-9458.0420914,0.00012848,2]
[323456125,1713999039595,-1036.50906227,0.00012848,2]
[323456126,1713999039603,-2733.91199499,0.00012848,2]
[323456127,1713999039613,-1036.50906227,0.00012855,2]
[323456128,1713999039624,-1036.50906227,0.00012863,2]
[323456129,1713999039633,-167.33,0.00012865,2]
[323456130,1713999039642,-2361.43352066,0.00012868,2]
[323456131,1713999039651,-251.27451082,0.00012868,2]
[323456132,1713999039661,-1221.59250652,0.0001287,2]
[323456133,1713999039672,-268.45241778,0.0001287,2]
[323456134,1713999039682,-268.45241778,0.0001287,2]
[323456135,1713999039692,-268.45241778,0.0001287,2]
[323456136,1713999039703,-1036.50906227,0.0001287,2]
[323456137,1713999039714,-500.0,0.00012879,2]
[323456138,1713999039725,-500.0,0.00012879,2]
[323456139,1713999039735,-305.63,0.00012879,2]
[323456140,1713999039745,-500.0,0.00012879,2]
[323456141,1713999039757,-500.0,0.00012879,2]
[323456142,1713999039770,-500.0,0.00012879,2]
[323456143,1713999039780,-1045.82,0.00012879,2]
[323456144,1713999039792,-244.72,0.00012879,2]
[323456145,1713999039802,-508.99567579,0.00012879,2]
[323456146,1713999039812,-508.99,0.00012879,2]
[323456147,1713999039822,-500.0,0.00012879,2]
[323456148,1713999039834,-500.0,0.00012879,2]
[323456149,1713999039845,-500.0,0.00012879,2]
[323456150,1713999039858,-543.88198614,0.00012879,2]
[323456151,1713999039870,-500.0,0.00012879,2]
[323456152,1713999039880,-500.0,0.00012879,2]
[323456153,1713999039892,-500.0,0.00012879,2]
[323456154,1713999039903,-500.0,0.00012879,2]
[323456155,1713999039914,-500.0,0.00012879,2]
[323456156,1713999039926,-500.0,0.00012879,2]
[323456157,1713999039939,-500.0,0.00012879,2]
[323456158,1713999039951,-536.97,0.00012879,2]
[323456159,1713999039960,-500.0,0.00012879,2]
[323456160,1713999039970,-500.0,0.00012879,2]
[323456161,1713999039979,-500.0,0.00012879,2]
[323456162,1713999039989,-613.73,0.00012879,2]
[323456163,1713999039998,-500.0,0.00012879,2]
[323456164,1713999040007,-500.0,0.00012879,2]
[323456165,1713999040016,-500.0,0.00012879,2]
[323456166,1713999040025,-544.8,0.00012879,2]
[323456167,1713999040035,-500.0,0.00012879,2]
[323456168,1713999040044,-500.0,0.00012879,2]
[323456169,1713999040053,-500.0,0.00012879,2]
[323456171,1713999040063,-500.0,0.00012879,2]
[323456173,1713999040072,-262.83,0.00012879,2]
[323456175,1713999040081,-630.35,0.00012879,2]
[323456176,1713999040090,-500.0,0.00012879,2]
[323456177,1713999040100,-500.0,0.00012879,2]
[323456178,1713999040110,-3984288.29083762,0.0001288,2]
[323456179,1713999040123,-20050.72586938,0.0001288,2]
[323456180,1713999040135,-38816.59706,0.0001288,2]
[323456182,1713999040150,-36086.70506678,0.0001288,2]
[323456184,1713999040163,-6422.7,0.0001288,2]
[323456196,1713999040539,-3540.44544459,0.0001288,2]
[323456197,1713999040595,-312.16935958,0.0001288,2]
[323456201,1713999043491,-1049.700003,0.00011722,2]
[323456202,1713999043503,-37.249997,0.00011722,2]
[323456203,1713999043513,-412.930005,0.00012878,2]
[323456205,1713999046415,-623.57905727,0.00012878,2]
[323456206,1713999046427,-240.88,0.00012879,2]
[323456207,1713999046436,-271.82423713,0.00012879,2]
[323456208,1713999046447,-634.58576287,0.00012879,2]
[323456209,1713999046456,-1678.02197946,0.0001288,2]
[323456210,1713999046698,-44502.69115942,0.0001288,2]
[323456211,1713999046711,-95814.85519899,0.0001288,2]
[323456212,1713999046723,-1539.38,0.0001288,2]
[323456213,1713999046735,-460650.724411,0.0001288,2]
[323456214,1713999046775,-164.7809795,0.00012878,2]
[323456215,1713999046785,-120868.18439883,0.0001288,2]
[323456216,1713999046804,-264.07000324,0.0001288,2]
[323456217,1713999046816,-590.82,0.0001288,2]
[323456254,1714000231564,-3081.20235982,9.424e-05,2]
[323456255,1714000231574,-314.09051539,9.424e-05,2]
[323456256,1714000231583,-18873.20662479,9.471e-05,2]
[323456257,1714000231610,-2687.59666688,9.471e-05,2]
[323456258,1714000231826,-1794.45261573,9.471e-05,2]
[323456261,1714000231836,-1977.36311643,9.472e-05,2]
[323456263,1714000231845,-226.49,9.474e-05,2]
[323456264,1714000231857,-126.69426784,9.996e-05,2]
[323456266,1714000231868,-557.5711272,9.996e-05,2]
[323456267,1714000231879,-1934.51795971,0.00011188,2]
[323456292,1714000237502,-2002.0899956,0.00011188,2]
[323456293,1714000237514,-1534.55277945,0.00011188,2]
[323456294,1714000237524,-1052.1515495,0.00011366,2]
[323456298,1714000237557,-89.5884505,0.00011366,2]
[323456300,1714000237567,-250.0,0.00011399,2]
[323456302,1714000237577,-53.2640495,0.00011516,2]
[323456303,1714000237588,-1023.22456633,0.00011516,2]
[323456306,1714000237614,-1423.51138417,0.00011516,2]
[323456307,1714000237623,-1640.61,0.00011571,2]
[323456308,1714000237633,-23900.0,0.00011616,2]
[323456309,1714000237642,-226.49,0.00011738,2]
[323456310,1714000237652,-1000.0,0.00011811,2]
[323456311,1714000237661,-165.65,0.00011841,2]
[323456312,1714000237675,-499.99,0.00011859,2]
[323456313,1714000237684,-163.17,0.0001187,2]
[323456314,1714000237694,-2750.0,0.00012,2]
[323456315,1714000237703,-409.12011988,0.00012157,2]
[323456316,1714000237714,-1655.40252715,0.00012158,2]
[323456317,1714000237723,-506.0,0.00012328,2]
[323456318,1714000237732,-3964.2352,0.000126,2]
[323456319,1714000237742,-1316.37914942,0.0001267,2]
[323456320,1714000237752,-2500.0,0.00012699,2]
[323456321,1714000237762,-1217.4444,0.00012699,2]
[323456322,1714000237772,-500.0,0.000127,2]
[323456323,1714000237785,-1000.0,0.000127,2]
[323456324,1714000237820,-10874.1571,0.000127,2]
[323456325,1714000237830,-175.58953541,0.000127,2]
[323456326,1714000237840,-172.1050513,0.000127,2]
[323456327,1714000237852,-7500.0,0.000127,2]
[323456328,1714000237861,-176.0771055,0.000127,2]
[323456329,1714000237870,-14791.57350018,0.000127,2]
[323456330,1714000237880,-310.95271869,0.000127,2]
[323456331,1714000237890,-14791.57350013,0.00012718,2]
[323456332,1714000237899,-310.95271868,0.00012722,2]
[323456333,1714000237908,-14791.57350013,0.00012736,2]
[323456334,1714000237917,-181.38160287,0.00012742,2]
[323456335,1714000237927,-310.95271868,0.00012744,2]
[323456336,1714000237936,-14791.57350013,0.00012755,2]
[323456337,1714000237946,-310.95271868,0.00012767,2]
[323456338,1714000237955,-3748.58194925,0.00012773,2]
[323456339,1714000237967,-5208.92676619,0.00012773,2]
[323456340,1714000237979,-5834.06478469,0.00012773,2]
[323456341,1714000237988,-170.37924012,0.00012778,2]
[323456342,1714000237998,-3152.68069714,0.00012778,2]
[323456343,1714000238007,-863.2049665,0.00012778,2]
[323456344,1714000238033,-1415.05502933,0.00012778,2]
[323456345,1714000238042,-5960.7957,0.0001278,2]
[323456346,1714000238052,-5157.44927054,0.0001278,2]
[323456347,1714000238064,-670.93300009,0.0001278,2]
[323456351,1714000239725,-45167.23162937,0.0001278,2]
[323456352,1714000239735,-310.95271868,0.00012789,2]
[323456353,1714000239746,-621.96,0.0001279,2]
[323456354,1714000239755,-595.32,0.0001279,2]
[323456355,1714000239764,-500.0,0.0001279,2]
[323456356,1714000239774,-500.0,0.0001279,2]
[323456357,1714000239783,-500.0,0.0001279,2]
[323456358,1714000239792,-500.0,0.0001279,2]
[323456359,1714000239802,-500.0,0.0001279,2]
[323456360,1714000239811,-500.0,0.0001279,2]
[323456361,1714000239820,-1312.49,0.0001279,2]
[323456362,1714000239830,-500.0,0.0001279,2]
[323456363,1714000239841,-500.0,0.0001279,2]
[323456364,1714000239851,-598.43,0.0001279,2]
[323456365,1714000239864,-424.96643052,0.0001279,2]
[323456366,1714000239873,-500.0,0.0001279,2]
[323456367,1714000239883,-500.0,0.0001279,2]
[323456368,1714000239892,-500.0,0.0001279,2]
[323456369,1714000239902,-519.39,0.0001279,2]
[323456370,1714000239912,-188.24,0.0001279,2]
[323456371,1714000239921,-50.28974835,0.0001279,2]
[323456372,1714000239942,-120.22105313,0.0001279,2]
[323456373,1714000239952,-500.0,0.0001279,2]
[323456374,1714000239962,-500.0,0.0001279,2]
[323456375,1714000239971,-500.0,0.0001279,2]
[323456376,1714000239981,-311.07566013,0.0001279,2]
[323456377,1714000239992,-188.92433987,0.0001279,2]
[323456378,1714000240002,-132.25085316,0.0001279,2]
[323456379,1714000240013,-367.74914684,0.0001279,2]
[323456380,1714000240022,-207.99285316,0.0001279,2]
[323456381,1714000240034,-292.00714684,0.0001279,2]
[323456382,1714000240043,-500.0,0.0001279,2]
[323456383,1714000240052,-234.75285316,0.0001279,2]
[323456384,1714000240064,-265.24714684,0.0001279,2]
[323456385,1714000240074,-19.40262227,0.0001279,2]
[323456386,1714000240107,-455.07799912,0.0001279,2]
[323456387,1714000240119,-25.51937861,0.0001279,2]
[323456388,1714000240129,-4144.51527748,0.00012791,2]
[323456389,1714000240152,-1893.7,0.00012791,2]
[323456390,1714000240163,-3456.9,0.00012791,2]
[323456391,1714000240180,-3896.92962932,0.00012791,2]
[323456405,1714000242756,-1399.52859333,0.00012791,2]
[323456406,1714000242767,-639.63,0.00012799,2]
[323456407,1714000242776,-602.2,0.00012799,2]
[323456408,1714000242785,-500.0,0.00012799,2]
[323456409,1714000242795,-500.0,0.00012799,2]
[323456410,1714000242804,-500.0,0.00012799,2]
[323456411,1714000242813,-622.9,0.00012799,2]
[323456412,1714000242822,-526.65,0.00012799,2]
[323456413,1714000242832,-391.42783154,0.00012799,2]
[323456414,1714000242842,-500.0,0.00012799,2]
[323456415,1714000242855,-500.0,0.00012799,2]
[323456416,1714000242865,-308.64839907,0.00012799,2]
[323456417,1714000242874,-500.0,0.00012799,2]
[323456418,1714000242884,-500.0,0.00012799,2]
[323456419,1714000242893,-500.0,0.00012799,2]
[323456420,1714000242902,-501.34966844,0.00012799,2]
[323456421,1714000242912,-553.08,0.00012799,2]
[323456422,1714000242922,-500.0,0.00012799,2]
[323456423,1714000242931,-632.48,0.00012799,2]
[323456424,1714000242940,-500.0,0.00012799,2]
[323456425,1714000242950,-500.0,0.00012799,2]
[323456426,1714000242959,-500.0,0.00012799,2]
[323456427,1714000242968,-500.0,0.00012799,2]
[323456428,1714000242977,-500.0,0.00012799,2]
[323456429,1714000242986,-500.0,0.00012799,2]
[323456430,1714000242996,-500.0,0.00012799,2]
[323456431,1714000243005,-500.0,0.00012799,2]
[323456432,1714000243015,-500.0,0.00012799,2]
[323456433,1714000243025,-500.0,0.00012799,2]
[323456434,1714000243034,-500.0,0.00012799,2]
[323456435,1714000243043,-500.0,0.00012799,2]
[323456436,1714000243052,-371.59071463,0.00012799,2]
[323456437,1714000243062,-500.0,0.00012799,2]
[323456438,1714000243072,-500.0,0.00012799,2]
[323456439,1714000243081,-500.0,0.00012799,2]
[323456440,1714000243090,-500.0,0.00012799,2]
[323456441,1714000243099,-500.0,0.00012799,2]
[323456442,1714000243110,-151.61,0.00012799,2]
[323456443,1714000243119,-500.0,0.00012799,2]